fUSD/lending_fUSD_20260517
["ID","MTS","AMOUNT","RATE_DAILY","PERIOD"]
[422500778,1779000648000,-500.0,0.00039,7]
[422500783,1779000648000,-500.0,0.00039,7]
[422500780,1779000648000,-500.0,0.00039,7]
[422500781,1779000648000,-500.0,0.00039,7]
[422500784,1779000648000,-500.0,0.00039,7]
[422500788,1779000648000,-500.0,0.00039,7]
[422500772,1779000648000,-153.76,0.00038961,120]
[422500821,1779000648000,-622.19222578,0.0003949,30]
[422500760,1779000648000,-350.0,0.00038767,5]
[422500822,1779000648000,-4040.4716116,0.00039557,14]
[422500865,1779000648000,-1000.0,0.0003981,11]
[422500866,1779000648000,-1895.58713876,0.00039811,2]
[422500855,1779000648000,-1895.58713876,0.00039796,2]
[422500859,1779000648000,-153.0,0.000398,120]
[422500856,1779000648000,-1000.0,0.00039799,6]
[422500862,1779000648000,-200.0,0.000398,19]
[422500860,1779000648000,-2000.0,0.000398,118]
[422500863,1779000648000,-1500.0,0.000398,31]
[422500861,1779000648000,-194.168,0.000398,41]
[422500868,1779000648000,-242.59630084,0.00039847,2]
[422500870,1779000648000,-6326.5507396,0.00039857,2]
[422500871,1779000648000,-3338.3144292,0.00039857,2]
[422500876,1779000648000,-151.0,0.00039857,30]
[422500869,1779000648000,-1895.58713876,0.00039848,2]
[422500867,1779000648000,-1000.0,0.00039821,90]
[422500872,1779000648000,-450744.4457102,0.00039857,2]
[422500875,1779000648000,-151.0,0.00039857,30]
[422500878,1779000648000,-1000.0,0.00039862,90]
[422500873,1779000648000,-3024.0689473,0.00039857,2]
[422500874,1779000648000,-151.0,0.00039857,30]
[422500877,1779000648000,-46226.2019034,0.00039857,2]
[422500880,1779000648000,-403.2076737,0.0003987,2]
[422500879,1779000648000,-359.71931752,0.00039869,14]
[422500882,1779000648000,-1895.58713876,0.00039883,2]
[422500881,1779000648000,-587.0,0.0003987,2]
[422500883,1779000648000,-150.0,0.00039887,2]
[422500885,1779000648000,-150.0,0.00039887,2]
[422500884,1779000648000,-3316.11994332,0.00039887,2]
[422500823,1779000648000,-5800.0,0.00039573,14]
[422500858,1779000648000,-160.0,0.000398,48]
[422500864,1779000648000,-2313.0,0.00039803,11]
[422500886,1779000648000,-17342.44378636,0.00039887,2]
[422500853,1779000648000,-1000.0,0.00039776,90]
[422500857,1779000648000,-1000.0,0.00039799,48]
[422500816,1779000648000,-1363.97249892,0.00039401,11]
[422500824,1779000648000,-150.0,0.00039579,2]
[422500829,1779000648000,-1946.38074,0.000396,115]
[422500839,1779000648000,-2313.0,0.00039653,11]
[422500831,1779000648000,-2000.0,0.000396,115]
[422500828,1779000648000,-1946.38074,0.000396,115]
[422500832,1779000648000,-321.54,0.00039612,120]
[422500830,1779000648000,-1946.38074,0.000396,115]
[422500833,1779000648000,-2313.0,0.00039612,11]
[422500836,1779000648000,-161.04,0.00039636,30]
[422500835,1779000648000,-500.0,0.00039636,30]
[422500834,1779000648000,-1000.0,0.00039632,90]
[422500837,1779000648000,-494.34,0.00039636,30]
[422500827,1779000648000,-1946.38074,0.000396,115]
[422500841,1779000648000,-1000.0,0.0003967,90]
[422500850,1779000648000,-1000.0,0.0003974,4]
[422500854,1779000648000,-1000.0,0.00039788,3]
[422500847,1779000648000,-1000.0,0.00039725,60]
[422500849,1779000648000,-300.0,0.00039726,120]
[422500838,1779000648000,-6784.29,0.00039648,2]
[422500846,1779000648000,-1000.0,0.00039725,5]
[422500848,1779000648000,-350.0,0.00039726,5]
[422500845,1779000648000,-1000.0,0.00039721,90]
[422500844,1779000648000,-2000.0,0.000397,116]
[422500842,1779000648000,-1000.0,0.00039691,90]
[422500852,1779000648000,-1000.0,0.00039774,90]
[422500843,1779000648000,-164.0,0.00039694,11]
[422500851,1779000648000,-1000.0,0.0003977,90]
[422500840,1779000648000,-163.0,0.00039653,11]
[422500929,1779000649000,-500.0,0.00039999,31]
[422500932,1779000649000,-304.83327557,0.00039999,20]
[422500933,1779000649000,-152.0,0.00039999,20]
[422500928,1779000649000,-500.0,0.00039999,31]
[422500931,1779000649000,-578.20924308,0.00039999,20]
[422500917,1779000649000,-1000.0,0.00039998,31]
[422500926,1779000649000,-500.0,0.00039999,31]
[422500924,1779000649000,-500.0,0.00039999,31]
[422500923,1779000649000,-500.0,0.00039999,31]
[422500922,1779000649000,-157.56966324,0.00039999,31]
[422500915,1779000649000,-1000.0,0.00039992,90]
[422500921,1779000649000,-256.68239765,0.00039999,31]
[422500925,1779000649000,-500.0,0.00039999,31]
[422500939,1779000649000,-152.0,0.00039999,20]
[422500927,1779000649000,-301.96179196,0.00039999,31]
[422500935,1779000649000,-152.0,0.00039999,20]
[422500946,1779000649000,-152.0,0.00039999,20]
[422500945,1779000649000,-187.78006525,0.00039999,20]
[422500934,1779000649000,-152.0,0.00039999,20]
[422500936,1779000649000,-152.0,0.00039999,20]
[422500944,1779000649000,-152.0,0.00039999,20]
[422500942,1779000649000,-152.0,0.00039999,20]
[422500938,1779000649000,-152.0,0.00039999,20]
[422500940,1779000649000,-152.0,0.00039999,20]
[422500943,1779000649000,-181.08010149,0.00039999,20]
[422500912,1779000649000,-400.0,0.0003997,2]
[422500937,1779000649000,-152.0,0.00039999,20]
[422500930,1779000649000,-500.0,0.00039999,31]
[422500909,1779000649000,-800.0,0.0003997,15]
[422500901,1779000649000,-1000.0,0.00039928,15]
[422500913,1779000649000,-1000.0,0.00039979,30]
[422500941,1779000649000,-174.61919141,0.00039999,20]
[422500890,1779000649000,-1000.0,0.00039899,14]
[422500889,1779000649000,-1000.0,0.00039899,120]
[422500892,1779000649000,-200.0,0.000399,16]
[422500891,1779000649000,-1226.61899881,0.000399,120]
[422500887,1779000649000,-150.0,0.00039887,2]
[422500893,1779000649000,-2038.08,0.000399,14]
[422500905,1779000649000,-800.0,0.0003997,15]
[422500904,1779000649000,-800.0,0.0003997,15]
[422500894,1779000649000,-312.52,0.000399,30]
[422500896,1779000649000,-2000.0,0.000399,119]
[422500895,1779000649000,-14245.83078647,0.000399,6]
[422500906,1779000649000,-800.0,0.0003997,15]
[422500897,1779000649000,-200.0,0.000399,14]
[422500903,1779000649000,-1000.0,0.00039953,90]
[422500902,1779000649000,-1000.0,0.00039951,16]
[422500899,1779000649000,-299.80864554,0.00039916,7]
[422500898,1779000649000,-304.18085496,0.00039901,7]
[422500900,1779000649000,-1895.58713876,0.00039925,2]
[422500908,1779000649000,-800.0,0.0003997,15]
[422500920,1779000649000,-500.0,0.00039999,31]
[422500918,1779000649000,-500.0,0.00039999,31]
[422500919,1779000649000,-363.88507623,0.00039999,31]
[422500907,1779000649000,-800.0,0.0003997,15]
[422500910,1779000649000,-800.0,0.0003997,15]
[422500914,1779000649000,-164.0,0.00039988,11]
[422500916,1779000649000,-154.54813898,0.00039997,30]
[422500911,1779000649000,-800.0,0.0003997,15]
[422500947,1779000649000,-194.72792766,0.00039999,20]
[422500888,1779000649000,-2294.9737345,0.00039887,2]
[422500952,1779000649000,-233.51889341,0.00039999,20]
[422500980,1779000649000,-10525.51924709,0.0004,5]
[422500985,1779000649000,-158.0,0.0004,2]
[422500982,1779000649000,-2645.97262085,0.0004,90]
[422500984,1779000649000,-528.08749188,0.0004,120]
[422500986,1779000649000,-4617.38281278,0.0004,50]
[422500981,1779000649000,-154.90923201,0.0004,120]
[422500983,1779000649000,-174.26601955,0.0004,120]
[422500988,1779000649000,-500.0,0.0004,120]
[422500987,1779000649000,-27720.14254263,0.0004,120]
[422501002,1779000649000,-32773.0,0.0004,30]
[422500992,1779000649000,-1000.0,0.0004,120]
[422500991,1779000649000,-1000.0,0.0004,120]
[422500996,1779000649000,-402.42243835,0.0004,5]
[422501001,1779000649000,-160.0,0.0004,120]
[422500998,1779000649000,-192.39,0.0004,2]
[422500995,1779000649000,-10107.72613821,0.0004,4]
[422500993,1779000649000,-154.94,0.0004,7]
[422500999,1779000649000,-284.67,0.0004,120]
[422500997,1779000649000,-1000.0,0.0004,30]
[422501000,1779000649000,-160.0,0.0004,3]
[422501004,1779000649000,-993.33218303,0.0004,30]
[422501003,1779000649000,-804.0,0.0004,30]
[422501006,1779000649000,-151.2,0.0004,120]
[422501005,1779000649000,-294.86375332,0.0004,30]
[422501008,1779000649000,-329.22,0.0004,120]
[422501007,1779000649000,-324.31,0.0004,120]
[422500948,1779000649000,-201.93286099,0.00039999,20]
[422500990,1779000649000,-648.818203,0.0004,30]
[422500989,1779000649000,-2500.0,0.0004,41]
[422500994,1779000649000,-1027.00307629,0.0004,120]
[422500978,1779000649000,-150.0,0.0004,120]
[422500979,1779000649000,-14292.6433,0.0004,120]
[422500949,1779000649000,-209.40437684,0.00039999,20]
[422500950,1779000649000,-217.15233878,0.00039999,20]
[422500953,1779000649000,-242.15909246,0.00039999,20]
[422500954,1779000649000,-251.11897888,0.00039999,20]
[422500961,1779000649000,-1000.0,0.00039999,20]
[422500955,1779000649000,-260.4103811,0.00039999,20]
[422500960,1779000649000,-1000.0,0.00039999,10]
[422500958,1779000649000,-1000.0,0.00039999,2]
[422500957,1779000649000,-329.54703372,0.00039999,20]
[422500962,1779000649000,-14929.64669292,0.0004,10]
[422500956,1779000649000,-270.0455652,0.00039999,20]
[422500964,1779000649000,-1708.60126756,0.0004,2]
[422500959,1779000649000,-1000.0,0.00039999,7]
[422500951,1779000649000,-225.18697532,0.00039999,20]
[422500966,1779000649000,-37373.57544143,0.0004,10]
[422500963,1779000649000,-584.00978238,0.0004,5]
[422500973,1779000649000,-515.75260384,0.0004,2]
[422500974,1779000649000,-30150.68713461,0.0004,2]
[422500970,1779000649000,-10865.93366069,0.0004,2]
[422500972,1779000649000,-2175.0,0.0004,20]
[422500975,1779000649000,-1074.43369825,0.0004,2]
[422500971,1779000649000,-4000.0,0.0004,14]
[422500969,1779000649000,-164.04170104,0.0004,2]
[422500967,1779000649000,-319.68727725,0.0004,2]
[422500977,1779000649000,-10000.0,0.0004,90]
[422500965,1779000649000,-39702.65356506,0.0004,10]
[422500976,1779000649000,-610.46505665,0.0004,2]
[422500968,1779000649000,-3000.0,0.0004,7]
[422501050,1779000650000,-1895.58713876,0.00040126,2]
[422501049,1779000650000,-165.29041115,0.00040117,2]
[422501048,1779000650000,-1895.58713876,0.00040113,2]
[422501043,1779000650000,-2313.0,0.00040049,11]
[422501046,1779000650000,-2500.0,0.000401,120]
[422501044,1779000650000,-1363.97249892,0.00040071,12]
[422501047,1779000650000,-2000.0,0.000401,120]
[422501042,1779000650000,-5060.46715262,0.00040049,15]
[422501054,1779000650000,-1895.58713876,0.00040171,2]
[422501053,1779000650000,-2107.96,0.00040141,2]
[422501052,1779000650000,-391.81872224,0.00040139,2]
[422501045,1779000650000,-20359.9147567,0.00040083,15]
[422501051,1779000650000,-500.0,0.00040137,120]
[422501066,1779000650000,-3543.0,0.00040223,2]
[422501056,1779000650000,-351.2334008,0.0004019,120]
[422501057,1779000650000,-150.0,0.00040195,2]
[422501060,1779000650000,-300.954998,0.000402,50]
[422501059,1779000650000,-63236.14890179,0.000402,30]
[422501058,1779000650000,-500.0,0.000402,120]
[422501061,1779000650000,-420.78,0.000402,120]
[422501062,1779000650000,-151.0,0.000402,120]
[422501063,1779000650000,-153.0,0.000402,120]
[422501064,1779000650000,-1354.0,0.00040223,2]
[422501065,1779000650000,-927.0,0.00040223,2]
[422501068,1779000650000,-1270.0,0.00040223,2]
[422501079,1779000650000,-1010.88,0.0004029,60]
[422501040,1779000650000,-3480.82,0.00040044,120]
[422501055,1779000650000,-954.58977359,0.00040183,120]
[422501041,1779000650000,-5000.0,0.00040049,15]
[422501015,1779000650000,-1000.0,0.0004,2]
[422501030,1779000650000,-3033.62237944,0.0004,2]
[422501014,1779000650000,-1000.0,0.0004,2]
[422501070,1779000650000,-930.0,0.00040223,2]
[422501009,1779000650000,-692.59,0.0004,120]
[422501010,1779000650000,-383.54,0.0004,120]
[422501013,1779000650000,-500.0,0.0004,120]
[422501012,1779000650000,-167.10526086,0.0004,30]
[422501011,1779000650000,-204.71,0.0004,120]
[422501017,1779000650000,-1000.0,0.0004,2]
[422501027,1779000650000,-1946.38074,0.0004,120]
[422501019,1779000650000,-1000.0,0.0004,2]
[422501020,1779000650000,-1000.0,0.0004,2]
[422501023,1779000650000,-1008.41099095,0.0004,2]
[422501021,1779000650000,-1000.0,0.0004,2]
[422501016,1779000650000,-1000.0,0.0004,2]
[422501022,1779000650000,-1000.0,0.0004,2]
[422501018,1779000650000,-1000.0,0.0004,2]
[422501028,1779000650000,-2000.0,0.0004,120]
[422501024,1779000650000,-245.7,0.0004,26]
[422501025,1779000650000,-2469.54300841,0.0004,2]
[422501026,1779000650000,-1946.38074,0.0004,120]
[422501032,1779000650000,-2326.14038709,0.0004,2]
[422501031,1779000650000,-3033.62237944,0.0004,2]
[422501033,1779000650000,-168.068147,0.0004,20]
[422501029,1779000650000,-194.168,0.0004,41]
[422501035,1779000650000,-1586.0,0.00040004,11]
[422501036,1779000650000,-1895.58713876,0.00040025,2]
[422501039,1779000650000,-151.32304821,0.00040042,2]
[422501037,1779000650000,-350.0,0.00040025,2]
[422501034,1779000650000,-231.792548,0.0004,30]
[422501038,1779000650000,-1895.58713876,0.00040027,2]
[422501067,1779000650000,-625.0,0.00040223,2]
[422501071,1779000650000,-3632.0,0.00040223,2]
[422501069,1779000650000,-150.0,0.00040223,2]
[422501106,1779000650000,-406.85,0.00040368,120]
[422501109,1779000650000,-406.85,0.00040368,120]
[422501108,1779000650000,-406.85,0.00040368,120]
[422501112,1779000650000,-406.85,0.00040368,120]
[422501110,1779000650000,-406.85,0.00040368,120]
[422501113,1779000650000,-406.85,0.00040368,120]
[422501105,1779000650000,-406.85,0.00040368,120]
[422501114,1779000650000,-406.85,0.00040368,120]
[422501115,1779000650000,-406.85,0.00040368,120]
[422501111,1779000650000,-406.85,0.00040368,120]
[422501117,1779000650000,-309.72566823,0.00040368,120]
[422501120,1779000650000,-1830.08120038,0.00040383,120]
[422501122,1779000650000,-500.8620181,0.000404,30]
[422501107,1779000650000,-406.85,0.00040368,120]
[422501124,1779000650000,-157.0,0.00040401,120]
[422501123,1779000650000,-155.0,0.00040401,120]
[422501118,1779000650000,-150.0,0.00040368,6]
[422501126,1779000650000,-246.0,0.00040401,120]
[422501121,1779000650000,-1895.58713876,0.00040396,2]
[422501128,1779000650000,-300.0,0.00040401,3]
[422501116,1779000650000,-320.52040482,0.00040368,120]
[422501127,1779000650000,-166.57,0.00040401,119]
[422501119,1779000650000,-192.0,0.00040378,120]
[422501129,1779000650000,-200.0,0.00040401,3]
[422501132,1779000650000,-151.0,0.00040401,30]
[422501078,1779000650000,-356.78,0.0004029,60]
[422501133,1779000650000,-151.0,0.00040401,30]
[422501130,1779000650000,-151.0,0.00040401,30]
[422501125,1779000650000,-154.0,0.00040401,120]
[422501104,1779000650000,-406.85,0.00040368,120]
[422501131,1779000650000,-151.0,0.00040401,30]
[422501102,1779000650000,-406.85,0.00040368,120]
[422501100,1779000650000,-406.85,0.00040368,120]
[422501073,1779000650000,-400.0,0.0004027,3]
[422501075,1779000650000,-5469.06,0.00040273,108]
[422501074,1779000650000,-400.0,0.0004027,3]
[422501072,1779000650000,-400.0,0.0004027,3]
[422501076,1779000650000,-500.0,0.00040274,120]
[422501080,1779000650000,-2825.58,0.0004029,60]
[422501085,1779000650000,-1895.58713876,0.00040303,2]
[422501083,1779000650000,-150.0,0.000403,29]
[422501084,1779000650000,-163.8,0.000403,29]
[422501082,1779000650000,-2158.06109377,0.000403,120]
[422501081,1779000650000,-2320.54,0.0004029,60]
[422501089,1779000650000,-263.8,0.00040314,2]
[422501086,1779000650000,-154.29214092,0.00040303,120]
[422501077,1779000650000,-209.4,0.0004029,60]
[422501088,1779000650000,-150.0,0.0004031,120]
[422501091,1779000650000,-173.47882654,0.00040314,120]
[422501094,1779000650000,-5148.93267477,0.00040348,2]
[422501098,1779000650000,-500.0,0.00040356,120]
[422501097,1779000650000,-500.0,0.00040353,60]
[422501096,1779000650000,-500.0,0.00040353,60]
[422501099,1779000650000,-152.31,0.0004036,120]
[422501092,1779000650000,-1895.58713876,0.0004033,2]
[422501087,1779000650000,-1895.58713876,0.00040309,2]
[422501095,1779000650000,-700.0,0.00040353,60]
[422501101,1779000650000,-406.85,0.00040368,120]
[422501093,1779000650000,-470.18246669,0.00040341,2]
[422501103,1779000650000,-406.85,0.00040368,120]
[422501090,1779000650000,-171.6250708,0.00040314,120]
[422501165,1779000651000,-550.0,0.00040412,2]
[422501169,1779000651000,-234.48823271,0.00040412,2]
[422501175,1779000651000,-1058.31306026,0.00040412,2]
[422501176,1779000651000,-677.92215431,0.00040412,2]
[422501166,1779000651000,-11000.72280963,0.00040412,2]
[422501167,1779000651000,-165308.66930962,0.00040412,2]
[422501168,1779000651000,-15346.44166282,0.00040412,2]
[422501174,1779000651000,-1309.63601111,0.00040412,2]
[422501171,1779000651000,-501.81935908,0.00040412,3]
[422501170,1779000651000,-177.9573668,0.00040412,2]
[422501164,1779000651000,-15196.92839118,0.00040412,2]
[422501182,1779000651000,-1093.04802622,0.00040412,2]
[422501173,1779000651000,-384.42532084,0.00040412,2]
[422501177,1779000651000,-8001.28368077,0.00040412,2]
[422501181,1779000651000,-220.04375989,0.00040412,2]
[422501179,1779000651000,-641.8599846,0.00040412,2]
[422501180,1779000651000,-227.0606349,0.00040412,5]
[422501178,1779000651000,-744.10720129,0.00040412,2]
[422501184,1779000651000,-2500.0,0.00040412,2]
[422501186,1779000651000,-1804.38270686,0.00040412,2]
[422501185,1779000651000,-350.54620163,0.00040412,2]
[422501187,1779000651000,-1100.0,0.00040412,2]
[422501183,1779000651000,-500.0,0.00040412,7]
[422501162,1779000651000,-3327.58289185,0.00040412,2]
[422501172,1779000651000,-6000.0,0.00040412,2]
[422501158,1779000651000,-15413.41865347,0.00040412,3]
[422501149,1779000651000,-10994.84029711,0.00040412,3]
[422501163,1779000651000,-179.91908229,0.00040412,2]
[422501134,1779000651000,-159.59133,0.00040401,30]
[422501140,1779000651000,-777.0,0.0004041,120]
[422501138,1779000651000,-500.0,0.00040403,3]
[422501136,1779000651000,-166.56,0.00040403,119]
[422501135,1779000651000,-166.57,0.00040402,119]
[422501137,1779000651000,-500.0,0.00040403,3]
[422501139,1779000651000,-465.59751742,0.00040403,120]
[422501143,1779000651000,-500.0,0.00040412,120]
[422501141,1779000651000,-192.0,0.00040411,120]
[422501142,1779000651000,-246.09296289,0.00040412,120]
[422501144,1779000651000,-182791.44339972,0.00040412,2]
[422501146,1779000651000,-172417.2810401,0.00040412,2]
[422501148,1779000651000,-528.4543528,0.00040412,2]
[422501145,1779000651000,-585.27886169,0.00040412,5]
[422501151,1779000651000,-2062.48118957,0.00040412,5]
[422501147,1779000651000,-125452.45905061,0.00040412,2]
[422501150,1779000651000,-1210.0,0.00040412,2]
[422501152,1779000651000,-3945.78066439,0.00040412,12]
[422501153,1779000651000,-1014.76319398,0.00040412,5]
[422501157,1779000651000,-1221.0,0.00040412,4]
[422501155,1779000651000,-600.0,0.00040412,5]
[422501154,1779000651000,-15899.18260911,0.00040412,3]
[422501156,1779000651000,-500.0,0.00040412,5]
[422501160,1779000651000,-32023.79051133,0.00040412,5]
[422501161,1779000651000,-269681.86100262,0.00040412,2]
[422501159,1779000651000,-2035.81546399,0.00040412,4]
[422501189,1779000651000,-934.69089973,0.00040412,2]
[422501193,1779000651000,-1626.56872895,0.00040412,2]
[422501191,1779000651000,-43069.5402695,0.00040412,5]
[422501218,1779000651000,-898.05847631,0.00040412,2]
[422501221,1779000651000,-610.0,0.00040412,2]
[422501223,1779000651000,-363.21936539,0.00040412,2]
[422501229,1779000651000,-13722.82393047,0.00040412,2]
[422501224,1779000651000,-518.83325754,0.00040412,2]
[422501227,1779000651000,-1028.62100538,0.00040412,2]
[422501230,1779000651000,-1868.55106984,0.00040412,7]
[422501225,1779000651000,-204.46380448,0.00040412,2]
[422501226,1779000651000,-761.22954177,0.00040412,2]
[422501233,1779000651000,-379.0,0.00040412,2]
[422501232,1779000651000,-1530.97416957,0.00040412,2]
[422501231,1779000651000,-201.52539022,0.00040412,2]
[422501235,1779000651000,-468.34215679,0.00040412,2]
[422501245,1779000651000,-7517.08824097,0.00040412,2]
[422501234,1779000651000,-20000.0,0.00040412,2]
[422501236,1779000651000,-160.73981071,0.00040412,2]
[422501244,1779000651000,-1990.0,0.00040412,2]
[422501242,1779000651000,-5422.98469611,0.00040412,2]
[422501239,1779000651000,-78753.03478843,0.00040412,14]
[422501240,1779000651000,-1267.43025548,0.00040412,10]
[422501238,1779000651000,-1603.50127946,0.00040412,2]
[422501237,1779000651000,-10000.0,0.00040412,3]
[422501241,1779000651000,-180.0,0.00040412,2]
[422501243,1779000651000,-500.0,0.00040412,2]
[422501199,1779000651000,-75935.35167486,0.00040412,2]
[422501219,1779000651000,-472.11674602,0.00040412,2]
[422501222,1779000651000,-12987.16707575,0.00040412,2]
[422501228,1779000651000,-506.78881086,0.00040412,5]
[422501217,1779000651000,-2228.89428584,0.00040412,2]
[422501188,1779000651000,-3926.80441961,0.00040412,2]
[422501190,1779000651000,-493.48745397,0.00040412,2]
[422501220,1779000651000,-150.0,0.00040412,2]
[422501195,1779000651000,-561.87096738,0.00040412,2]
[422501196,1779000651000,-1036.8033632,0.00040412,2]
[422501194,1779000651000,-1123.3189813,0.00040412,5]
[422501198,1779000651000,-2259.96148756,0.00040412,2]
[422501197,1779000651000,-373.83851734,0.00040412,2]
[422501201,1779000651000,-15211.96243125,0.00040412,2]
[422501200,1779000651000,-12574.05501763,0.00040412,2]
[422501204,1779000651000,-21379.26154505,0.00040412,10]
[422501202,1779000651000,-7047.62573168,0.00040412,4]
[422501205,1779000651000,-1145.98575609,0.00040412,2]
[422501192,1779000651000,-631.2208366,0.00040412,2]
[422501208,1779000651000,-280.04727447,0.00040412,2]
[422501211,1779000651000,-2501.50415173,0.00040412,2]
[422501216,1779000651000,-1150.2827993,0.00040412,2]
[422501215,1779000651000,-5845.85263027,0.00040412,2]
[422501212,1779000651000,-884.93425742,0.00040412,2]
[422501213,1779000651000,-207.92234551,0.00040412,2]
[422501214,1779000651000,-289.87151216,0.00040412,2]
[422501207,1779000651000,-30913.18229534,0.00040412,2]
[422501210,1779000651000,-20850.92279802,0.00040412,2]
[422501203,1779000651000,-1882.3137139,0.00040412,2]
[422501206,1779000651000,-5392.48688469,0.00040412,4]
[422501209,1779000651000,-412.5807123,0.00040412,2]
[422501257,1779000652000,-1922.86,0.00028661,7]
[422501269,1779000652000,-1922.86,0.0002882,2]
[422501265,1779000652000,-434.13,0.00028756,7]
[422501261,1779000652000,-434.13,0.00028693,30]
[422501263,1779000652000,-434.13,0.00028725,2]
[422501262,1779000652000,-1922.86,0.00028725,2]
[422501264,1779000652000,-1922.86,0.00028756,7]
[422501260,1779000652000,-1828.94196763,0.00028693,30]
[422501258,1779000652000,-434.13,0.00028661,7]
[422501254,1779000652000,-503.0,0.00028238,3]
[422501251,1779000652000,-309.85980075,0.0002863,2]
[422501255,1779000652000,-1613.00019925,0.0002863,2]
[422501256,1779000652000,-434.13,0.0002863,2]
[422501253,1779000652000,-772.02889815,0.000231,2]
[422501252,1779000652000,-1227.97110185,0.000231,2]
[422501250,1779000652000,-503.0,0.00027688,2]
[422501249,1779000652000,-503.0,0.00027137,2]
[422501247,1779000652000,-709.32495541,0.00036712,2]
[422501248,1779000652000,-888.27250654,0.00040412,2]
[422501246,1779000652000,-315.67504459,0.00036712,2]
[422501267,1779000652000,-1922.86,0.00028788,30]
[422501259,1779000652000,-93.91803237,0.00028693,30]
[422501271,1779000652000,-434.13,0.00028852,7]
[422501272,1779000652000,-1922.86,0.00028852,7]
[422501288,1779000652000,-1081.24,0.00029169,30]
[422501293,1779000652000,-517.07419315,0.00030439,3]
[422501294,1779000652000,-503.0,0.00030441,5]
[422501292,1779000652000,-503.0,0.0002989,5]
[422501286,1779000652000,-1081.24,0.00029105,2]
[422501285,1779000652000,-1081.24,0.00029074,30]
[422501287,1779000652000,-1081.24,0.00029137,7]
[422501273,1779000652000,-1922.86,0.00028883,30]
[422501283,1779000652000,-1081.24,0.00029042,7]
[422501284,1779000652000,-434.13,0.00029042,7]
[422501282,1779000652000,-434.13,0.0002901,2]
[422501290,1779000652000,-1081.43,0.00029232,7]
[422501281,1779000652000,-1081.24,0.0002901,2]
[422501291,1779000652000,-503.0,0.0002934,4]
[422501289,1779000652000,-1081.24,0.00029201,2]
[422501279,1779000652000,-434.13,0.00028979,30]
[422501277,1779000652000,-434.13,0.00028947,7]
[422501275,1779000652000,-1922.86,0.00028915,2]
[422501266,1779000652000,-434.13,0.00028788,30]
[422501268,1779000652000,-503.0,0.00028789,3]
[422501276,1779000652000,-434.13,0.00028915,2]
[422501274,1779000652000,-434.13,0.00028883,30]
[422501278,1779000652000,-1922.86,0.00028947,7]
[422501270,1779000652000,-434.13,0.0002882,2]
[422501280,1779000652000,-1922.86,0.00028979,30]
[422501332,1779000653000,-150.0,0.00040412,2]
[422501340,1779000653000,-1279.72,0.00040412,120]
[422501342,1779000653000,-184.77436896,0.00040412,120]
[422501324,1779000653000,-272.1346,0.0003812,2]
[422501347,1779000653000,-309.91,0.00040412,120]
[422501323,1779000653000,-6055.0,0.00037223,2]
[422501325,1779000653000,-900.0,0.0003997,15]
[422501326,1779000653000,-900.0,0.0003997,15]
[422501327,1779000653000,-6055.0,0.00040223,2]
[422501331,1779000653000,-5100.0,0.00040412,39]
[422501321,1779000653000,-479.0,0.00036712,2]
[422501333,1779000653000,-1000.0,0.00040412,30]
[422501343,1779000653000,-2952.269619,0.00040412,120]
[422501334,1779000653000,-4336.287,0.00040412,60]
[422501337,1779000653000,-299.81103898,0.00040412,120]
[422501338,1779000653000,-227.30358758,0.00040412,30]
[422501335,1779000653000,-184.24383264,0.00040412,30]
[422501341,1779000653000,-274.08191346,0.00040412,120]
[422501336,1779000653000,-6990.91181327,0.00040412,120]